bitfinex/quotes_BTCUSD_20240818
["timestamp","ask_amount","ask_price","bid_price","bid_amount"]
[1723969894408,0.646845,59712.0,59711.0,1.503]
[1723969895001,0.586145,59712.0,59711.0,1.503]
[1723969896075,0.6874659,59712.0,59711.0,1.503]
[1723969897236,0.6874659,59712.0,59711.0,0.003]
[1723969897435,0.9219239,59712.0,59711.0,0.003]
[1723969898581,0.93145305,59712.0,59711.0,0.003]
[1723969899183,0.93145305,59712.0,59711.0,0.02475962]
[1723969900162,0.586145,59712.0,59711.0,0.1603597]
[1723969900652,0.586145,59712.0,59711.0,0.0247597]
[1723969900800,0.586145,59712.0,59711.0,1.5247597]
[1723969902546,0.586145,59712.0,59711.0,0.0247597]
[1723969903266,0.646845,59712.0,59711.0,0.0247597]
[1723969904968,0.646845,59712.0,59711.0,0.02475966]
[1723969905164,0.7481659,59712.0,59711.0,0.0039064]
[1723969905767,0.7481659,59712.0,59711.0,0.02475976]
[1723969906170,0.6874659,59712.0,59711.0,0.02475976]
[1723969906383,0.6874659,59712.0,59711.0,0.16035976]
[1723969906539,0.6874659,59712.0,59711.0,0.10005976]
[1723969906740,0.6874659,59712.0,59711.0,0.02475976]
[1723969907469,0.586145,59712.0,59711.0,0.02475976]
[1723969908503,0.586145,59712.0,59711.0,0.0247593]
[1723969909505,0.586145,59712.0,59711.0,0.05974293]
[1723969909506,0.117229,59712.0,59711.0,0.05974293]
[1723969909710,0.351687,59712.0,59711.0,0.05974293]
[1723969909909,0.117229,59712.0,59711.0,0.13874293]
[1723969910081,0.117229,59712.0,59711.0,1.70084293]
[1723969910486,0.117224,59715.0,59712.0,0.079]
[1723969910724,0.117224,59715.0,59714.0,0.079]
[1723969910926,0.117224,59715.0,59714.0,0.0998529]
[1723969911128,0.117224,59715.0,59714.0,0.13483428]
[1723969911705,0.119224,59715.0,59714.0,0.13483428]
[1723969912386,0.121224,59715.0,59714.0,0.13483428]
[1723969912852,0.119224,59715.0,59714.0,0.13483428]
[1723969913031,0.119224,59715.0,59714.0,0.0998529]
[1723969913032,0.117224,59715.0,59714.0,0.0998529]
[1723969913235,0.119224,59715.0,59714.0,0.0998529]
[1723969913452,0.121224,59715.0,59714.0,0.0998529]
[1723969914199,0.121224,59715.0,59714.0,1.5998529]
[1723969915090,0.35567,59715.0,59714.0,1.5998529]
[1723969916631,0.35567,59715.0,59714.0,1.65008869]
[1723969916833,0.590116,59715.0,59714.0,1.5998529]
[1723969917753,0.35567,59715.0,59714.0,1.5998529]
[1723969918279,0.60037021,59715.0,59714.0,0.0208529]
[1723969918481,0.87862561,59715.0,59714.0,0.0208529]
[1723969918713,0.87862561,59715.0,59711.0,0.0009064]
[1723969918714,0.351687,59712.0,59711.0,0.0009064]
[1723969918916,0.351687,59712.0,59711.0,1.52175922]
[1723969919080,0.351687,59712.0,59711.0,1.66285922]
[1723969919692,0.33934621,59715.0,59714.0,0.258325]
[1723969919693,0.002,59715.0,59714.0,0.258325]
[1723969919879,0.002,59715.0,59714.0,0.54860894]
[1723969920080,0.000824,59719.0,59718.0,0.258317]
[1723969920280,0.000824,59719.0,59718.0,0.56851759]
[1723969920489,0.000824,59719.0,59718.0,0.68573459]
[1723969920742,0.000824,59719.0,59718.0,0.56851157]
[1723969922041,0.007824,59719.0,59718.0,0.56951157]
[1723969922423,0.007824,59719.0,59718.0,0.64488196]
[1723969922624,0.007824,59719.0,59718.0,2.14488196]
[1723969923016,0.010824,59719.0,59718.0,2.14588194]
[1723969923209,0.010824,59719.0,59718.0,2.11089002]
[1723969923408,0.010824,59719.0,59718.0,1.73931984]
[1723969924577,0.010824,59719.0,59718.0,1.66394952]
[1723969925413,0.010824,59719.0,59718.0,1.71418079]
[1723969927552,0.010824,59719.0,59718.0,2.51944781]
[1723969927766,0.010824,59719.0,59718.0,2.67954896]
[1723969928660,0.003824,59719.0,59718.0,2.80405831]
[1723969928865,0.003824,59719.0,59718.0,2.77895361]
[1723969929121,0.004824,59719.0,59718.0,2.52151861]
[1723969929315,0.004824,59719.0,59718.0,2.42111396]
[1723969929535,0.004824,59719.0,59718.0,2.4974111]
[1723969932228,0.004824,59719.0,59718.0,2.44158529]
[1723969932448,0.004824,59719.0,59718.0,2.12586544]
[1723969934491,0.004824,59719.0,59718.0,2.36030044]
[1723969934695,0.004824,59719.0,59718.0,2.12586544]
[1723969936370,0.004824,59719.0,59718.0,1.83651137]
[1723969936619,0.004824,59719.0,59718.0,1.81704887]
[1723969939611,0.004824,59719.0,59718.0,1.89232888]
[1723969940536,0.004824,59719.0,59718.0,2.26388224]
[1723969940759,0.004824,59719.0,59718.0,2.20805677]
[1723969940958,0.004824,59719.0,59718.0,2.26388238]
[1723969941585,0.004824,59719.0,59718.0,2.26390917]
[1723969943445,0.004824,59719.0,59718.0,2.14669217]
[1723969943703,0.004824,59719.0,59718.0,2.26390917]
[1723969944460,0.004824,59719.0,59718.0,2.14669217]
[1723969945406,0.004824,59719.0,59718.0,2.07138537]
[1723969945855,0.004824,59719.0,59718.0,2.07138536]
[1723969946185,0.004824,59719.0,59718.0,2.14669627]
[1723969946389,0.004824,59719.0,59718.0,2.07138536]
[1723969948597,0.590901,59719.0,59718.0,1.93028536]
[1723969948826,0.88996322,59719.0,59718.0,0.02375508]
[1723969949032,0.004824,59719.0,59718.0,0.05873341]
[1723969949182,0.004824,59719.0,59718.0,2.98049528]
[1723969949392,0.1386,59743.0,59730.0,0.0786]
[1723969949599,0.1386,59743.0,59737.0,0.1446]
[1723969949600,0.117175,59740.0,59737.0,0.1446]
[1723969949801,0.235161,59744.0,59738.0,0.05582701]
[1723969949802,0.000824,59744.0,59738.0,0.05582701]
[1723969950002,0.000824,59744.0,59739.0,1.68751079]
[1723969950213,0.000824,59744.0,59740.0,0.17300001]
[1723969950406,0.000824,59744.0,59741.0,0.02084868]
[1723969950710,0.000824,59744.0,59742.0,0.02084868]
[1723969950955,0.000824,59744.0,59743.0,1.52084868]
[1723969952222,0.001824,59744.0,59743.0,1.52084868]
[1723969952566,0.000824,59744.0,59743.0,1.52084868]
[1723969952972,0.000824,59744.0,59743.0,1.52484868]
[1723969953977,0.000824,59744.0,59743.0,1.64201668]
[1723969954180,0.000824,59744.0,59743.0,1.78661668]
[1723969955504,0.000824,59744.0,59743.0,1.66944868]
[1723969957073,0.000824,59744.0,59743.0,1.52484868]
[1723969957773,0.000824,59744.0,59743.0,1.504]
[1723969958411,0.000824,59744.0,59743.0,1.52482973]
[1723969958652,0.000824,59744.0,59743.0,1.504]
[1723969959470,0.000824,59744.0,59743.0,1.52483104]
[1723969960566,0.000824,59744.0,59743.0,1.52482989]
[1723969960967,0.000824,59744.0,59743.0,1.504]
[1723969961409,0.000824,59744.0,59743.0,1.5248298]
[1723969961803,0.000824,59744.0,59743.0,1.504]
[1723969962970,0.11799,59744.0,59743.0,1.504]
[1723969963178,0.000824,59744.0,59743.0,1.504]
[1723969965288,0.11799,59744.0,59743.0,1.504]
[1723969965403,0.352323,59744.0,59743.0,1.504]
[1723969965810,0.586656,59744.0,59743.0,1.504]
[1723969966262,1.0564248,59744.0,59743.0,0.004]
[1723969966519,1.1564248,59744.0,59743.0,0.004]
[1723969968100,1.1564248,59744.0,59743.0,0.003]
[1723969968445,1.1634248,59744.0,59743.0,0.004]
[1723969968774,1.1634248,59744.0,59743.0,0.001]
[1723969968995,0.117182,59737.0,59734.0,2.8497]
[1723969969522,0.117182,59737.0,59734.0,2.7694]
[1723969969733,0.117172,59741.0,59736.0,0.117181]
[1723969970082,0.117172,59741.0,59737.0,0.02084223]
[1723969970277,0.117172,59741.0,59736.0,0.117181]
[1723969970437,0.117172,59741.0,59737.0,0.02084219]
[1723969970637,0.117172,59741.0,59736.0,0.117181]
[1723969970853,0.117172,59741.0,59737.0,0.02084199]
[1723969971052,0.117172,59741.0,59738.0,0.02084199]
[1723969971292,0.117172,59741.0,59736.0,0.117181]
[1723969971682,0.335157,59744.0,59739.0,0.0803]
[1723969971683,0.100824,59744.0,59739.0,0.0803]
[1723969971854,0.117991,59744.0,59739.0,0.197475]
[1723969972086,0.000824,59744.0,59740.0,0.13801469]
[1723969972306,0.000824,59744.0,59743.0,0.117168]
[1723969972507,0.000824,59744.0,59743.0,0.13800969]
[1723969972718,0.000824,59744.0,59743.0,0.37234669]
[1723969972918,0.000824,59744.0,59743.0,1.63800969]
[1723969973126,0.007824,59744.0,59743.0,1.63800969]
[1723969973543,0.007824,59744.0,59743.0,1.67296438]
[1723969974564,0.000824,59744.0,59743.0,1.67295643]
[1723969974760,0.000824,59744.0,59743.0,1.67395643]
[1723969974994,0.000824,59744.0,59743.0,1.67795643]
[1723969976409,0.000824,59744.0,59743.0,1.91229343]
[1723969977221,0.000824,59744.0,59743.0,1.99259343]
[1723969977441,0.000824,59744.0,59743.0,2.22693043]
[1723969978017,0.000824,59744.0,59743.0,1.99259343]
[1723969978420,0.000824,59744.0,59743.0,2.00181302]
[1723969979933,0.000824,59744.0,59743.0,1.76747602]
[1723969980104,0.000824,59744.0,59743.0,1.75825643]
[1723969980312,0.000824,59744.0,59743.0,1.56078843]
[1723969980508,0.000824,59744.0,59743.0,1.52583497]
[1723969981669,0.000824,59744.0,59743.0,2.13580273]
[1723969982070,0.000824,59744.0,59743.0,2.13579761]
[1723969982881,0.000824,59744.0,59743.0,2.14501746]
[1723969983314,0.000824,59744.0,59743.0,2.14501234]
[1723969983912,0.000824,59744.0,59743.0,2.37934934]
[1723969986041,0.000824,59744.0,59743.0,2.06350455]
[1723969986279,0.000824,59744.0,59743.0,2.29784155]
[1723969988022,0.000824,59744.0,59743.0,2.34782641]
[1723969988237,0.000824,59744.0,59743.0,2.29784155]
[1723969988456,0.000824,59744.0,59743.0,2.34782641]
[1723969989285,0.000824,59744.0,59743.0,2.29784155]
[1723969990079,0.000824,59744.0,59743.0,2.232842]
[1723969990295,0.000824,59744.0,59743.0,2.21379777]
[1723969990489,0.000824,59744.0,59743.0,1.67794826]
[1723969990719,0.000824,59744.0,59743.0,1.91228526]
[1723969991324,0.000824,59744.0,59743.0,1.96235912]
[1723969991906,0.000824,59744.0,59743.0,2.22572226]
[1723969992133,0.000824,59744.0,59743.0,2.36463305]
[1723969992355,0.000824,59744.0,59743.0,2.66088655]
[1723969992545,0.000824,59744.0,59743.0,2.76103427]
[1723969992826,0.000824,59744.0,59743.0,2.77025304]
[1723969993033,0.000824,59744.0,59743.0,2.67010532]
[1723969993202,0.000824,59744.0,59743.0,2.79528997]
[1723969993406,0.000824,59744.0,59743.0,2.67010532]
[1723969994640,0.000824,59744.0,59743.0,2.60630532]
[1723969994850,0.000824,59744.0,59743.0,2.5179851]
[1723969995004,0.000824,59744.0,59743.0,2.52720344]
[1723969995841,0.000824,59744.0,59743.0,2.29286644]
[1723969996041,0.000824,59744.0,59743.0,2.52720346]
[1723969997424,0.000824,59744.0,59743.0,2.55169555]
[1723969998362,0.000824,59744.0,59743.0,2.61035779]
[1723969998693,0.000824,59744.0,59743.0,2.46220629]
[1723969998893,0.000824,59744.0,59743.0,2.61035744]
[1723970000083,0.000824,59744.0,59743.0,2.37602044]
[1723970001127,0.066724,59744.0,59743.0,2.02451544]
[1723970001311,0.066724,59744.0,59743.0,2.03249906]
[1723970001312,0.26049,59744.0,59743.0,2.03249906]
[1723970001592,0.494823,59744.0,59743.0,1.56077879]
[1723970001813,0.5916588,59744.0,59743.0,1.56077879]
[1723970002025,0.36683834,59744.0,59743.0,2.00745483]
[1723970002309,0.3573258,59744.0,59743.0,1.93218065]
[1723970002882,0.000824,59744.0,59743.0,2.03253663]
[1723970003078,0.000824,59744.0,59743.0,2.05761337]
[1723970003288,0.000824,59744.0,59743.0,2.06683108]
[1723970003471,0.000824,59744.0,59743.0,1.94139836]
[1723970004457,0.000824,59744.0,59743.0,2.06679449]
[1723970005088,0.000824,59744.0,59743.0,1.94139836]
[1723970005484,0.000824,59744.0,59743.0,2.06679637]
[1723970005689,0.000824,59744.0,59743.0,2.01101704]
[1723970005881,0.000824,59744.0,59743.0,1.94139043]
[1723970006236,0.000824,59744.0,59743.0,2.13935843]
[1723970006877,0.000824,59744.0,59743.0,2.05855843]
[1723970007084,0.000824,59744.0,59743.0,2.06143523]
[1723970007283,0.000824,59744.0,59743.0,2.14168652]
[1723970007484,0.000824,59744.0,59743.0,2.10798346]
[1723970007662,0.000824,59744.0,59743.0,1.87640186]
[1723970007861,0.2148258,59744.0,59743.0,1.505]
[1723970008242,0.5257588,59744.0,59743.0,1.61095324]
[1723970008442,0.5257588,59744.0,59743.0,1.56078412]
[1723970008894,1.0551248,59744.0,59743.0,0.06078412]
[1723970009130,0.8207918,59744.0,59743.0,0.005]
[1723970009328,0.8207918,59744.0,59743.0,0.0258362]
[1723970009503,0.8207918,59744.0,59743.0,0.005]
[1723970010106,0.8207918,59744.0,59743.0,0.02583933]
[1723970010307,0.8207918,59744.0,59743.0,0.005]
[1723970010765,0.83037673,59744.0,59743.0,0.005]
[1723970011754,1.08276637,59744.0,59743.0,0.005]
[1723970011976,1.18576637,59744.0,59743.0,0.005]
[1723970012176,1.18276637,59744.0,59743.0,0.005]
[1723970012578,1.18276637,59744.0,59743.0,0.004]
[1723970012784,0.194288,59733.0,59732.0,1.5]
[1723970012999,0.254988,59733.0,59732.0,1.52084517]
[1723970013251,0.254988,59733.0,59732.0,1.57102366]
[1723970013564,0.254988,59733.0,59732.0,1.57101412]
[1723970013565,0.117188,59733.0,59732.0,1.57101412]
[1723970013693,0.09760634,59743.0,59733.0,0.0602]
[1723970013901,0.1378,59742.0,59734.0,0.07101412]
[1723970014128,0.1378,59742.0,59735.0,0.02084517]
[1723970014129,0.117183,59736.0,59735.0,0.02084517]
[1723970014450,0.21513963,59736.0,59735.0,0.02084517]
[1723970014776,0.21513963,59736.0,59735.0,0.07101015]
[1723970014951,0.334346,59741.0,59735.0,0.07101015]
[1723970014952,0.1,59741.0,59735.0,0.55269322]
[1723970015150,0.44912934,59740.0,59737.0,0.07523548]
[1723970015354,0.00938002,59741.0,59738.0,0.52755941]
[1723970015506,0.117991,59744.0,59740.0,0.10031243]
[1723970015727,0.09718603,59743.0,59742.0,0.07522881]
[1723970015925,0.21435403,59743.0,59742.0,1.52084517]
[1723970016123,0.21435403,59743.0,59742.0,1.57099826]
[1723970017451,0.21635403,59743.0,59742.0,1.52084517]
[1723970017649,0.21635403,59743.0,59742.0,1.5]
[1723970017851,0.21635403,59743.0,59742.0,1.52083435]
[1723970018185,0.09918603,59743.0,59742.0,1.52083435]
[1723970018373,0.09918603,59743.0,59742.0,1.52183435]
[1723970018577,0.09918603,59743.0,59742.0,1.52083435]
[1723970018778,0.09718603,59743.0,59742.0,1.52083435]
[1723970019016,0.09718603,59743.0,59742.0,1.52583435]
[1723970020092,0.000824,59744.0,59743.0,0.117168]
[1723970020361,0.000824,59744.0,59743.0,0.99119173]
[1723970020596,0.000824,59744.0,59743.0,1.22552873]
[1723970020803,0.000824,59744.0,59743.0,2.65030582]
[1723970020981,0.000824,59744.0,59743.0,2.51625895]
[1723970021150,0.000824,59744.0,59743.0,2.41596835]
[1723970021555,0.000824,59744.0,59743.0,2.41796835]
[1723970022002,0.000824,59744.0,59743.0,2.51825718]
[1723970022204,0.000824,59744.0,59743.0,2.75259418]
[1723970022549,0.000824,59744.0,59743.0,2.51825718]
[1723970022936,0.000824,59744.0,59743.0,2.51624386]
[1723970023415,0.000824,59744.0,59743.0,2.52124386]
[1723970024209,0.000824,59744.0,59743.0,2.75558086]
[1723970024410,0.000824,59744.0,59743.0,2.75558319]
[1723970026103,0.000824,59744.0,59743.0,2.52124619]
[1723970026978,0.000824,59744.0,59743.0,2.75558319]
[1723970027499,0.000824,59744.0,59743.0,2.75559772]
[1723970028175,0.000824,59744.0,59743.0,2.7555938]
[1723970028422,0.000824,59744.0,59743.0,2.78066906]
[1723970029793,1e-08,59744.0,59743.0,2.66450812]
[1723970030195,1e-08,59744.0,59743.0,2.74764262]
[1723970030593,1e-08,59744.0,59743.0,2.98197962]
[1723970031195,1e-08,59744.0,59743.0,2.66450812]
[1723970031757,1e-08,59744.0,59743.0,2.48609996]
[1723970031875,1e-08,59744.0,59743.0,2.36075576]
[1723970032926,1e-08,59744.0,59743.0,2.14960559]
[1723970033081,1e-08,59744.0,59743.0,1.5607692]
[1723970033279,1e-08,59744.0,59743.0,1.6429974]
[1723970033803,1e-08,59744.0,59743.0,1.5258294]
[1723970034239,1e-08,59744.0,59743.0,1.57598043]
[1723970034686,1e-08,59744.0,59743.0,1.69314843]
[1723970034920,1e-08,59744.0,59743.0,1.92748543]
[1723970035131,1e-08,59744.0,59743.0,2.38395458]
[1723970035449,1e-08,59744.0,59743.0,2.14961758]
[1723970035661,1e-08,59744.0,59743.0,2.04933075]
[1723970035830,1e-08,59744.0,59743.0,2.00738702]
[1723970036389,1e-08,59744.0,59743.0,1.93216275]
[1723970036598,1e-08,59744.0,59743.0,2.00738934]
[1723970037023,1e-08,59744.0,59743.0,1.56077312]
[1723970038240,1e-08,59744.0,59743.0,1.505]
[1723970038448,1e-08,59744.0,59743.0,1.56077465]
[1723970038658,1e-08,59744.0,59743.0,1.505]
[1723970038879,1e-08,59744.0,59743.0,1.56077465]
[1723970039312,1e-08,59744.0,59743.0,1.63600124]
[1723970039753,1e-08,59744.0,59743.0,1.75316924]
[1723970040193,1e-08,59744.0,59743.0,1.63600124]
[1723970040396,1e-08,59744.0,59743.0,2.14962544]
[1723970040603,1e-08,59744.0,59743.0,2.17466424]
[1723970041508,1e-08,59744.0,59743.0,2.11888959]
[1723970041729,1e-08,59744.0,59743.0,2.17465346]
[1723970043118,1e-08,59744.0,59743.0,2.05748546]
[1723970043461,1e-08,59744.0,59743.0,2.06670138]
[1723970043662,0.68266781,59744.0,59743.0,0.56670138]
[1723970043863,0.51083481,59744.0,59743.0,0.50738221]
[1723970044103,0.59353481,59744.0,59743.0,2.00738221]
[1723970044306,0.59353481,59744.0,59743.0,1.56076387]
[1723970045503,0.82786781,59744.0,59743.0,1.56076387]
[1723970045704,0.59353481,59744.0,59743.0,1.56076387]
[1723970045907,0.59353481,59744.0,59743.0,1.93214793]
[1723970046070,0.59353481,59744.0,59743.0,1.63602581]
[1723970046265,0.59353481,59744.0,59743.0,1.56076387]
[1723970046524,0.59353481,59744.0,59743.0,1.61094512]
[1723970046730,0.44833481,59744.0,59743.0,1.63602581]
[1723970047300,0.21400181,59744.0,59743.0,1.63602581]
[1723970047502,0.21400181,59744.0,59743.0,2.0074212]
[1723970047634,0.44833481,59744.0,59743.0,1.63602581]
[1723970047837,0.45787771,59744.0,59743.0,2.00742121]
[1723970048503,1e-08,59744.0,59743.0,2.09042121]
[1723970048636,1e-08,59744.0,59743.0,2.01515927]
[1723970049038,1e-08,59744.0,59743.0,2.01515547]
[1723970050919,1e-08,59744.0,59743.0,1.96714072]
[1723970051128,1e-08,59744.0,59743.0,2.09260513]
[1723970051658,1e-08,59744.0,59743.0,2.20977313]
[1723970051861,1e-08,59744.0,59743.0,2.09260513]
[1723970053691,1e-08,59744.0,59743.0,2.0925764]
[1723970054575,1e-08,59744.0,59743.0,1.96712244]
[1723970055003,1e-08,59744.0,59743.0,1.96802994]
[1723970055249,1e-08,59744.0,59743.0,2.06840258]
[1723970056231,0.59383481,59744.0,59743.0,0.56840258]
[1723970056437,0.59383481,59744.0,59743.0,0.06170036]
[1723970056438,0.82816781,59744.0,59743.0,0.06170036]
[1723970056565,0.82816781,59744.0,59743.0,0.0966594]
[1723970056769,0.82816781,59744.0,59743.0,0.54334395]
[1723970057294,0.82816781,59744.0,59743.0,0.54334226]
[1723970057505,0.82816781,59744.0,59743.0,0.0966594]
[1723970057663,0.82816781,59744.0,59743.0,0.1119073]
[1723970057885,0.82816781,59744.0,59743.0,0.06170036]
[1723970058471,0.82816781,59744.0,59743.0,0.07695337]
[1723970059451,0.82816781,59744.0,59743.0,0.02674868]
[1723970060502,0.82816781,59744.0,59743.0,0.10206259]
[1723970061209,0.82816781,59744.0,59743.0,0.07699046]
[1723970061653,0.82816781,59744.0,59743.0,0.10209951]
[1723970061850,0.82816781,59744.0,59743.0,0.4331108]
[1723970062231,0.44833481,59744.0,59743.0,0.4331108]
[1723970062367,0.44833481,59744.0,59743.0,0.53352934]
[1723970062786,0.44833481,59744.0,59743.0,0.53357215]
[1723970063394,0.68266781,59744.0,59743.0,0.53357215]
[1723970063654,0.68266781,59744.0,59743.0,0.53356954]
[1723970064024,0.68266781,59744.0,59743.0,0.47777252]
[1723970064228,0.68266781,59744.0,59743.0,0.53356946]
[1723970065705,0.68266781,59744.0,59743.0,2.03356946]
[1723970066335,1e-08,59744.0,59743.0,2.03356946]
[1723970066531,0.11716601,59744.0,59743.0,2.03357278]
[1723970066982,0.11716601,59744.0,59743.0,1.9331079]
[1723970067382,0.11716601,59744.0,59743.0,2.03357103]
[1723970067383,1e-08,59744.0,59743.0,2.03357103]
[1723970067717,1e-08,59744.0,59743.0,2.0335712]
[1723970068024,1e-08,59744.0,59743.0,2.03357324]
[1723970068203,1e-08,59744.0,59743.0,2.03357347]
[1723970068573,1e-08,59744.0,59743.0,2.10007347]
[1723970070480,1e-08,59744.0,59743.0,2.03357347]
[1723970071904,0.11716601,59744.0,59743.0,1.93311008]
[1723970072147,1e-08,59744.0,59743.0,2.03358857]
[1723970072567,1e-08,59744.0,59743.0,1.93311573]
[1723970073013,0.11716601,59744.0,59743.0,1.93311573]
[1723970074049,0.82346781,59744.0,59743.0,0.43311573]
[1723970074253,0.82346781,59744.0,59743.0,0.07698843]
[1723970074536,1.05780081,59744.0,59743.0,0.07698843]
[1723970074686,1.15780081,59744.0,59743.0,0.02674763]
[1723970076467,1.15780081,59744.0,59743.0,0.0267505]
[1723970076468,1.18780081,59744.0,59743.0,0.0267505]
[1723970076682,1.18780081,59744.0,59743.0,0.0059075]
[1723970076828,1.31668089,59744.0,59743.0,0.0059075]
[1723970077034,1.31768089,59744.0,59743.0,0.0059075]
[1723970077197,1.31668089,59744.0,59743.0,0.0561505]
[1723970077419,0.54833481,59744.0,59743.0,0.0267487]
[1723970077623,0.54833481,59744.0,59743.0,0.07699088]
[1723970078469,0.54833481,59744.0,59743.0,0.0267487]
[1723970079228,0.54833481,59744.0,59743.0,1.5267487]
[1723970079766,0.31400181,59744.0,59743.0,2.03713304]
[1723970079985,0.21716601,59744.0,59743.0,2.03711317]
[1723970080183,0.21716601,59744.0,59743.0,1.66570632]
[1723970080395,0.45149901,59744.0,59743.0,1.66570632]
[1723970080563,0.45149901,59744.0,59743.0,0.07698809]
[1723970080766,0.45149901,59744.0,59743.0,0.0059075]
[1723970080767,1.11145071,59744.0,59743.0,0.0059075]
[1723970081204,0.54833481,59744.0,59743.0,0.0059075]
[1723970081406,0.54833481,59744.0,59743.0,0.02675033]
[1723970082751,0.54833481,59744.0,59743.0,0.39814565]
[1723970082893,0.62383481,59744.0,59743.0,0.47350094]
[1723970083090,0.85816781,59744.0,59743.0,0.07698994]
[1723970083290,0.85816781,59744.0,59743.0,1.52675033]
[1723970084287,0.62383481,59744.0,59743.0,1.52675033]
[1723970084486,0.52383481,59744.0,59743.0,1.52675033]
[1723970084876,0.75816781,59744.0,59743.0,1.52675033]
[1723970085308,0.52383481,59744.0,59743.0,1.52675033]
[1723970085668,0.75816781,59744.0,59743.0,1.52675033]
[1723970088176,0.75816781,59744.0,59743.0,1.57698192]
[1723970088177,0.44833481,59744.0,59743.0,1.57698192]
[1723970088305,0.44833481,59744.0,59743.0,1.60209573]
[1723970088504,0.44833481,59744.0,59743.0,1.52675033]
[1723970088947,0.44833481,59744.0,59743.0,1.57698436]
[1723970088948,0.68266781,59744.0,59743.0,1.57698436]
[1723970089932,0.68266781,59744.0,59743.0,1.52674907]
[1723970090788,0.68266781,59744.0,59743.0,1.58824907]
[1723970091335,0.68266781,59744.0,59743.0,1.58825007]
[1723970092357,0.68266781,59744.0,59743.0,1.67075007]
[1723970092786,0.68266781,59744.0,59743.0,1.72098536]
[1723970093648,0.68266781,59744.0,59743.0,2.11752186]
[1723970094990,0.68266781,59744.0,59743.0,2.11751146]
[1723970095420,0.44833481,59744.0,59743.0,2.11751146]
[1723970095666,0.44833481,59744.0,59743.0,2.17759429]
[1723970096473,0.35149901,59744.0,59743.0,2.17759429]
[1723970097415,0.35149901,59744.0,59743.0,2.07711725]
[1723970099357,0.11716601,59744.0,59743.0,2.20272246]
[1723970099534,0.11716601,59744.0,59743.0,2.07711725]
[1723970099835,0.11716601,59744.0,59743.0,2.20271286]
[1723970100422,0.35149901,59744.0,59743.0,2.14121286]
[1723970100840,0.35149901,59744.0,59743.0,2.06029864]
[1723970101039,0.35149901,59744.0,59743.0,2.08116797]
[1723970101249,0.35149901,59744.0,59743.0,1.98066628]
[1723970101454,0.35149901,59744.0,59743.0,2.08116797]
[1723970101619,0.35149901,59744.0,59743.0,2.05604674]
[1723970101819,0.35149901,59744.0,59743.0,1.98066628]
[1723970103095,0.35149901,59744.0,59743.0,1.89816628]
[1723970103294,0.35149901,59744.0,59743.0,1.97354738]
[1723970103650,0.35149901,59744.0,59743.0,1.89816628]
[1723970103858,0.58583201,59744.0,59743.0,2.05874294]
[1723970104067,0.35149901,59744.0,59743.0,2.05874294]
[1723970104370,0.58583201,59744.0,59743.0,1.93313148]
[1723970104584,0.58583201,59744.0,59743.0,1.9735457]
[1723970105842,0.68266781,59744.0,59743.0,1.9735457]
[1723970107497,0.68266781,59744.0,59743.0,0.4735457]
[1723970107669,0.74766781,59744.0,59743.0,0.49864415]
[1723970107893,0.74766781,59744.0,59743.0,0.02674914]
[1723970108095,0.74766781,59744.0,59743.0,1.52674914]
[1723970108594,0.68266781,59744.0,59743.0,1.52674914]
[1723970108796,0.68266781,59744.0,59743.0,1.5059075]
[1723970108997,0.68266781,59744.0,59743.0,1.52674716]
[1723970109206,0.68266781,59744.0,59743.0,2.05870854]
[1723970109407,0.68266781,59744.0,59743.0,1.97826023]
[1723970109625,0.68266781,59744.0,59743.0,2.05362451]
[1723970109751,0.68266781,59744.0,59743.0,1.89815833]
[1723970109959,0.68266781,59744.0,59743.0,1.97352506]
[1723970110184,0.68266781,59744.0,59743.0,1.60211199]
[1723970110806,0.68266781,59744.0,59743.0,1.97351404]
[1723970111372,0.68266781,59744.0,59743.0,1.60210561]
[1723970112197,0.68266781,59744.0,59743.0,1.6021136]
[1723970114259,0.68266781,59744.0,59743.0,1.97353117]
[1723970114413,0.68266781,59744.0,59743.0,1.93311303]
[1723970114614,0.09683581,59744.0,59743.0,2.07321303]
[1723970114820,0.21400181,59744.0,59743.0,2.07321303]
[1723970115336,0.11716601,59744.0,59743.0,2.07321303]
[1723970117169,0.11716601,59744.0,59743.0,2.01742507]
[1723970117368,0.11716601,59744.0,59743.0,2.07320857]
[1723970118796,0.11716601,59744.0,59743.0,2.19878686]
[1723970119222,0.11716601,59744.0,59743.0,2.07320857]
[1723970119814,0.11716601,59744.0,59743.0,2.19878686]
[1723970119815,1e-08,59744.0,59743.0,2.19878686]
[1723970120017,1e-08,59744.0,59743.0,2.07320857]
[1723970120362,0.11716601,59744.0,59743.0,2.19877479]
[1723970121318,0.11716601,59744.0,59743.0,1.701791]
[1723970121523,0.11716601,59744.0,59743.0,2.07318627]
[1723970124306,1e-08,59744.0,59743.0,2.07318627]
[1723970124532,0.11716601,59744.0,59743.0,2.07318627]
[1723970125102,1e-08,59744.0,59743.0,2.16952116]
[1723970125295,1e-08,59744.0,59743.0,2.24901492]
[1723970125500,1e-08,59744.0,59743.0,2.07318293]
[1723970125651,1e-08,59744.0,59743.0,2.07318217]
[1723970125868,1e-08,59744.0,59743.0,2.71023954]
[1723970126073,1e-08,59744.0,59743.0,2.19032656]
[1723970126499,1e-08,59744.0,59743.0,2.77812393]
[1723970126704,1e-08,59744.0,59743.0,2.19032656]
[1723970128809,1e-08,59744.0,59743.0,2.42466356]
[1723970130582,1e-08,59744.0,59743.0,2.42465459]
[1723970132364,1e-08,59744.0,59743.0,2.65899159]
[1723970133192,1e-08,59744.0,59743.0,3.44694186]
[1723970133394,0.00824,59753.0,59752.0,0.26115]
[1723970133606,0.00824,59753.0,59752.0,0.92259309]
[1723970134063,0.00824,59753.0,59752.0,1.15689409]
[1723970134620,0.00824,59753.0,59752.0,1.15789409]
[1723970134792,0.01324,59753.0,59752.0,1.15789409]
[1723970135475,0.01324,59753.0,59752.0,0.92359309]
[1723970135852,0.01324,59753.0,59752.0,0.92259309]
[1723970136169,0.00824,59753.0,59752.0,0.92359309]
[1723970136707,0.00824,59753.0,59752.0,0.92759309]
[1723970137585,0.00824,59753.0,59752.0,0.92757057]
[1723970138016,0.00824,59753.0,59752.0,0.87181232]
[1723970138185,0.00824,59753.0,59752.0,1.05290567]
[1723970140018,0.00824,59753.0,59752.0,1.05275148]
[1723970141830,0.00824,59753.0,59752.0,0.92747433]
[1723970143299,0.00824,59753.0,59752.0,1.02761626]
[1723970143637,0.00824,59753.0,59752.0,1.02761272]
[1723970144260,0.00824,59753.0,59752.0,0.61176172]